[Event "Titled Tuesday Blitz December 20 Late 2022"]
[White "Sammed Jaykumar, Shete"]
[Black "Senft, Sean"]
[WhiteFideId "5073421"]
[BlackFideId "2044960"]
[WhiteElo "2278"]
[BlackElo "1989"]
[Result "1-0"]
[Round "01"]
[TimeControl "180+1"]
[Date "2022.12.21"]
[WhiteClock "0:01:42"]
[BlackClock "0:02:06"]

1. Nf3 {[%clk 0:02:58]}  d5 {[%clk 0:03:00]} 2. g3 {[%clk 0:02:53]}  Nf6 {[%clk 0:03:00]} 3. Bg2 {[%clk 0:02:52]}  c6 {[%clk 0:03:01]} 4. O-O {[%clk 0:02:52]}  Bg4 {[%clk 0:03:02]} 5. d3 {[%clk 0:02:52]}  e6 {[%clk 0:03:02]} 6. Nbd2 {[%clk 0:02:52]}  Be7 {[%clk 0:03:02]} 7. a4 {[%clk 0:02:51]}  Nbd7 {[%clk 0:03:02]} 8. a5 {[%clk 0:02:51]}  h6 {[%clk 0:03:02]} 9. a6 {[%clk 0:02:50]}  b6 {[%clk 0:03:02]} 10. c4 {[%clk 0:02:46]}  Rc8 {[%clk 0:03:03]} 11. Qc2 {[%clk 0:02:45]}  O-O {[%clk 0:03:02]} 12. b3 {[%clk 0:02:45]}  dxc4 {[%clk 0:02:55]} 13. bxc4 {[%clk 0:02:44]}  c5 {[%clk 0:02:56]} 14. Bb2 {[%clk 0:02:43]}  Qc7 {[%clk 0:02:55]} 15. Nb1 {[%clk 0:02:41]}  Rcd8 {[%clk 0:02:53]} 16. Nc3 {[%clk 0:02:41]}  Qb8 {[%clk 0:02:51]} 17. Nb5 {[%clk 0:02:41]}  Ne8 {[%clk 0:02:46]} 18. Rfe1 {[%clk 0:02:33]}  Nc7 {[%clk 0:02:42]} 19. Ne5 {[%clk 0:02:28]}  Nxb5 {[%clk 0:02:31]} 20. Nc6 {[%clk 0:02:19]}  Qc7 {[%clk 0:02:25]} 21. Nxe7+ {[%clk 0:02:07]}  Kh8 {[%clk 0:02:24]} 22. cxb5 {[%clk 0:02:08]}  f5 {[%clk 0:02:13]} 23. Ng6+ {[%clk 0:02:06]}  Kh7 {[%clk 0:02:13]} 24. Nxf8+ {[%clk 0:02:03]}  Rxf8 {[%clk 0:02:14]} 25. d4 {[%clk 0:02:02]}  h5 {[%clk 0:02:14]} 26. dxc5 {[%clk 0:02:02]}  h4 {[%clk 0:02:15]} 27. Rac1 {[%clk 0:01:59]}  Nxc5 {[%clk 0:02:14]} 28. Bd4 {[%clk 0:01:59]}  h3 {[%clk 0:02:14]} 29. Bh1 {[%clk 0:01:59]}  Rc8 {[%clk 0:02:13]} 30. Bxc5 {[%clk 0:01:58]}  bxc5 {[%clk 0:02:14]} 31. Qc4 {[%clk 0:01:56]}  Qe5 {[%clk 0:02:13]} 32. Qf4 {[%clk 0:01:54]}  Qb2 {[%clk 0:02:10]} 33. Bf3 {[%clk 0:01:48]}  e5 {[%clk 0:02:06]} 34. Qg5 {[%clk 0:01:45]}  Bxf3 {[%clk 0:02:06]} 35. exf3 {[%clk 0:01:45]}  e4 {[%clk 0:02:05]} 36. Qxf5+ {[%clk 0:01:45]}  g6 {[%clk 0:02:05]} 37. Qxc8 {[%clk 0:01:43]}  Qf6 {[%clk 0:02:06]} 38. Qxh3+ {[%clk 0:01:42]} 1-0


[Site "https://www.chess.com"]

[Event "Titled Tuesday Blitz December 20 Late 2022"]
[White "Savanovic, Aleksandar"]
[Black "Tari, Aryan"]
[WhiteFideId "914932"]
[BlackFideId "1510045"]
[WhiteElo "2409"]
[BlackElo "2620"]
[Result "0-1"]
[Round "01"]
[TimeControl "180+1"]
[Date "2022.12.20"]
[WhiteClock "0:00:08"]
[BlackClock "0:00:06"]

1. d4 {[%clk 0:03:00]}  Nf6 {[%clk 0:02:54]} 2. Bf4 {[%clk 0:03:01]}  g6 {[%clk 0:02:50]} 3. e3 {[%clk 0:03:02]}  Bg7 {[%clk 0:02:51]} 4. Nf3 {[%clk 0:03:02]}  O-O {[%clk 0:02:51]} 5. Be2 {[%clk 0:03:02]}  d6 {[%clk 0:02:51]} 6. h3 {[%clk 0:03:03]}  Nbd7 {[%clk 0:02:52]} 7. O-O {[%clk 0:03:03]}  Qe8 {[%clk 0:02:53]} 8. c4 {[%clk 0:03:03]}  e5 {[%clk 0:02:53]} 9. Bh2 {[%clk 0:03:04]}  Ne4 {[%clk 0:02:52]} 10. Nc3 {[%clk 0:03:02]}  Nxc3 {[%clk 0:02:53]} 11. bxc3 {[%clk 0:03:03]}  Qe7 {[%clk 0:02:23]} 12. Rb1 {[%clk 0:03:02]}  e4 {[%clk 0:02:12]} 13. Nd2 {[%clk 0:03:02]}  c5 {[%clk 0:02:10]} 14. Qc2 {[%clk 0:03:00]}  Nf6 {[%clk 0:02:08]} 15. Rfd1 {[%clk 0:02:57]}  b6 {[%clk 0:02:08]} 16. Nb3 {[%clk 0:02:56]}  Re8 {[%clk 0:02:05]} 17. a4 {[%clk 0:02:54]}  h5 {[%clk 0:02:02]} 18. a5 {[%clk 0:02:49]}  Bf5 {[%clk 0:02:02]} 19. axb6 {[%clk 0:02:49]}  axb6 {[%clk 0:02:03]} 20. Nd2 {[%clk 0:02:42]}  Ra6 {[%clk 0:01:59]} 21. Rb2 {[%clk 0:02:41]}  Rea8 {[%clk 0:01:53]} 22. Bf1 {[%clk 0:02:37]}  h4 {[%clk 0:01:49]} 23. Rdb1 {[%clk 0:02:35]}  Nd7 {[%clk 0:01:50]} 24. g4 {[%clk 0:02:20]}  hxg3 {[%clk 0:01:49]} 25. Bxg3 {[%clk 0:02:20]}  Bf6 {[%clk 0:01:32]} 26. Bg2 {[%clk 0:02:17]}  Re8 {[%clk 0:01:32]} 27. Ra2 {[%clk 0:02:13]}  Rxa2 {[%clk 0:01:23]} 28. Qxa2 {[%clk 0:02:14]}  Bh4 {[%clk 0:01:18]} 29. Nf1 {[%clk 0:02:09]}  Kg7 {[%clk 0:01:15]} 30. Qa4 {[%clk 0:02:08]}  Rh8 {[%clk 0:01:11]} 31. Qc6 {[%clk 0:02:01]}  Bxg3 {[%clk 0:00:54]} 32. Nxg3 {[%clk 0:01:59]}  Bxh3 {[%clk 0:00:54]} 33. Qxe4 {[%clk 0:01:54]}  Qg5 {[%clk 0:00:54]} 34. Bxh3 {[%clk 0:01:35]}  Rxh3 {[%clk 0:00:55]} 35. Kg2 {[%clk 0:01:35]}  Nf6 {[%clk 0:00:50]} 36. Qf4 {[%clk 0:01:26]}  Qxf4 {[%clk 0:00:27]} 37. exf4 {[%clk 0:01:26]}  Rh4 {[%clk 0:00:28]} 38. Kf3 {[%clk 0:01:18]}  Nd7 {[%clk 0:00:23]} 39. Ne4 {[%clk 0:01:14]}  f5 {[%clk 0:00:19]} 40. Nxd6 {[%clk 0:01:13]}  Rh3+ {[%clk 0:00:19]} 41. Ke2 {[%clk 0:01:12]}  Rxc3 {[%clk 0:00:20]} 42. d5 {[%clk 0:01:09]}  Kf6 {[%clk 0:00:13]} 43. Nc8 {[%clk 0:01:01]}  Rxc4 {[%clk 0:00:12]} 44. Nxb6 {[%clk 0:01:02]}  Nxb6 {[%clk 0:00:11]} 45. Rxb6+ {[%clk 0:01:01]}  Kf7 {[%clk 0:00:11]} 46. Kf3 {[%clk 0:00:48]}  Rd4 {[%clk 0:00:10]} 47. d6 {[%clk 0:00:48]}  Ke6 {[%clk 0:00:10]} 48. d7+ {[%clk 0:00:38]}  Kxd7 {[%clk 0:00:10]} 49. Rxg6 {[%clk 0:00:39]}  Rd5 {[%clk 0:00:11]} 50. Ke3 {[%clk 0:00:37]}  c4 {[%clk 0:00:10]} 51. Rf6 {[%clk 0:00:34]}  c3 {[%clk 0:00:09]} 52. Rf7+ {[%clk 0:00:19]}  Kc6 {[%clk 0:00:09]} 53. Rf8 {[%clk 0:00:16]}  Kb5 {[%clk 0:00:09]} 54. Rc8 {[%clk 0:00:15]}  Kb4 {[%clk 0:00:09]} 55. f3 {[%clk 0:00:15]}  Kb3 {[%clk 0:00:09]} 56. Rb8+ {[%clk 0:00:16]}  Kc2 {[%clk 0:00:09]} 57. Rc8 {[%clk 0:00:17]}  Kb2 {[%clk 0:00:10]} 58. Rb8+ {[%clk 0:00:17]}  Kc1 {[%clk 0:00:10]} 59. Ke2 {[%clk 0:00:17]}  c2 {[%clk 0:00:08]} 60. Rb7 {[%clk 0:00:15]}  Rd2+ {[%clk 0:00:07]} 61. Ke1 {[%clk 0:00:15]}  Rd4 {[%clk 0:00:08]} 62. Ke2 {[%clk 0:00:14]}  Rxf4 {[%clk 0:00:08]} 63. Rb3 {[%clk 0:00:14]}  Rd4 {[%clk 0:00:08]} 64. Ke3 {[%clk 0:00:14]}  Kd1 {[%clk 0:00:06]} 65. Rc3 {[%clk 0:00:08]}  Rd5 {[%clk 0:00:06]} 66. Kf4 {[%clk 0:00:08]}  c1=Q+ {[%clk 0:00:06]} 0-1


[Site "https://www.chess.com"]

[Event "Titled Tuesday Blitz December 20 Late 2022"]
[White "Sebag, Marie"]
[Black "De Souza, Cristiano Gomes"]
[WhiteFideId "617822"]
[BlackFideId "2151758"]
[WhiteElo "2440"]
[BlackElo "2068"]
[Result "1-0"]
[Round "01"]
[TimeControl "180+1"]
[Date "2022.12.21"]
[WhiteClock "0:01:33"]
[BlackClock "0:01:47"]

1. c4 {[%clk 0:02:59]}  Nf6 {[%clk 0:02:58]} 2. Nc3 {[%clk 0:02:57]}  g6 {[%clk 0:02:58]} 3. g3 {[%clk 0:02:57]}  Bg7 {[%clk 0:02:58]} 4. Bg2 {[%clk 0:02:57]}  O-O {[%clk 0:02:58]} 5. Nf3 {[%clk 0:02:57]}  d6 {[%clk 0:02:59]} 6. O-O {[%clk 0:02:56]}  c5 {[%clk 0:02:59]} 7. d4 {[%clk 0:02:56]}  cxd4 {[%clk 0:02:59]} 8. Nxd4 {[%clk 0:02:56]}  Nbd7 {[%clk 0:02:58]} 9. b3 {[%clk 0:02:49]}  Nc5 {[%clk 0:02:56]} 10. Bb2 {[%clk 0:02:49]}  a6 {[%clk 0:02:55]} 11. Rc1 {[%clk 0:02:47]}  Rb8 {[%clk 0:02:54]} 12. Nd5 {[%clk 0:02:33]}  Ne6 {[%clk 0:02:53]} 13. Nxe6 {[%clk 0:02:27]}  fxe6 {[%clk 0:02:49]} 14. Nb4 {[%clk 0:02:15]}  Bd7 {[%clk 0:02:46]} 15. c5 {[%clk 0:02:05]}  a5 {[%clk 0:02:38]} 16. Nd3 {[%clk 0:02:04]}  Bb5 {[%clk 0:02:34]} 17. Nf4 {[%clk 0:02:00]}  Qd7 {[%clk 0:02:26]} 18. Bh3 {[%clk 0:01:59]}  Kh8 {[%clk 0:02:13]} 19. Nxe6 {[%clk 0:01:44]}  Rf7 {[%clk 0:02:06]} 20. Ng5 {[%clk 0:01:41]}  Qe8 {[%clk 0:01:55]} 21. Nxf7+ {[%clk 0:01:41]}  Qxf7 {[%clk 0:01:55]} 22. cxd6 {[%clk 0:01:42]}  exd6 {[%clk 0:01:55]} 23. Qxd6 {[%clk 0:01:41]}  Re8 {[%clk 0:01:53]} 24. Rc7 {[%clk 0:01:35]}  Qg8 {[%clk 0:01:47]} 25. Bxf6 {[%clk 0:01:33]} 1-0


[Site "https://www.chess.com"]

[Event "Titled Tuesday Blitz December 20 Late 2022"]
[White "Shimanov, Aleksandr"]
[Black "Przybylski, Wojciech"]
[WhiteFideId "4198603"]
[BlackFideId "1117599"]
[WhiteElo "2605"]
[BlackElo "2217"]
[Result "1-0"]
[Round "01"]
[TimeControl "180+1"]
[Date "2022.12.20"]
[WhiteClock "0:01:15"]
[BlackClock "0:00:28"]

1. e4 {[%clk 0:02:57]}  e5 {[%clk 0:02:57]} 2. Nf3 {[%clk 0:02:56]}  Nc6 {[%clk 0:02:57]} 3. Nc3 {[%clk 0:02:57]}  Nf6 {[%clk 0:02:56]} 4. h3 {[%clk 0:02:58]}  Be7 {[%clk 0:02:56]} 5. d4 {[%clk 0:02:57]}  exd4 {[%clk 0:02:53]} 6. Nxd4 {[%clk 0:02:58]}  d6 {[%clk 0:02:53]} 7. Nde2 {[%clk 0:02:56]}  O-O {[%clk 0:02:52]} 8. g4 {[%clk 0:02:56]}  Re8 {[%clk 0:02:52]} 9. Bg2 {[%clk 0:02:56]}  Bf8 {[%clk 0:02:52]} 10. O-O {[%clk 0:02:56]}  Nd7 {[%clk 0:02:42]} 11. f4 {[%clk 0:02:53]}  Nc5 {[%clk 0:02:40]} 12. Ng3 {[%clk 0:02:51]}  g6 {[%clk 0:02:38]} 13. Be3 {[%clk 0:02:51]}  Bg7 {[%clk 0:02:37]} 14. Qd2 {[%clk 0:02:49]}  Be6 {[%clk 0:02:34]} 15. Rad1 {[%clk 0:02:46]}  Bc4 {[%clk 0:02:33]} 16. Rfe1 {[%clk 0:02:45]}  Ba6 {[%clk 0:02:29]} 17. e5 {[%clk 0:02:39]}  Rc8 {[%clk 0:01:20]} 18. Bxc5 {[%clk 0:02:05]}  dxc5 {[%clk 0:01:19]} 19. Bxc6 {[%clk 0:02:05]}  Qxd2 {[%clk 0:01:13]} 20. Rxd2 {[%clk 0:02:05]}  bxc6 {[%clk 0:01:13]} 21. Nge4 {[%clk 0:02:06]}  Bc4 {[%clk 0:00:59]} 22. g5 {[%clk 0:01:49]}  Red8 {[%clk 0:00:57]} 23. Red1 {[%clk 0:01:48]}  Rxd2 {[%clk 0:00:56]} 24. Rxd2 {[%clk 0:01:49]}  Be6 {[%clk 0:00:56]} 25. h4 {[%clk 0:01:47]}  Bf8 {[%clk 0:00:54]} 26. a3 {[%clk 0:01:37]}  Be7 {[%clk 0:00:54]} 27. Na4 {[%clk 0:01:36]}  c4 {[%clk 0:00:53]} 28. Kf2 {[%clk 0:01:27]}  Rd8 {[%clk 0:00:52]} 29. Rxd8+ {[%clk 0:01:26]}  Bxd8 {[%clk 0:00:52]} 30. Nf6+ {[%clk 0:01:23]}  Kg7 {[%clk 0:00:50]} 31. Ke3 {[%clk 0:01:22]}  h5 {[%clk 0:00:47]} 32. Kd4 {[%clk 0:01:19]}  Kf8 {[%clk 0:00:47]} 33. Nc5 {[%clk 0:01:18]}  Bxf6 {[%clk 0:00:28]} 34. Nxe6+ {[%clk 0:01:16]}  fxe6 {[%clk 0:00:28]} 35. exf6 {[%clk 0:01:15]} 1-0


[Site "https://www.chess.com"]

[Event "Titled Tuesday Blitz December 20 Late 2022"]
[White "Shoker, Samy"]
[Black "Bambino Filho, Antonio Carlos"]
[WhiteFideId "627143"]
[BlackFideId "2113163"]
[WhiteElo "2493"]
[BlackElo "2409"]
[Result "1-0"]
[Round "01"]
[TimeControl "180+1"]
[Date "2022.12.21"]
[WhiteClock "0:00:35"]
[BlackClock "0:01:01"]

1. c4 {[%clk 0:02:57]}  c5 {[%clk 0:02:58]} 2. g3 {[%clk 0:02:58]}  Nc6 {[%clk 0:02:57]} 3. Bg2 {[%clk 0:02:59]}  g6 {[%clk 0:02:57]} 4. Nc3 {[%clk 0:03:00]}  Bg7 {[%clk 0:02:57]} 5. a3 {[%clk 0:03:01]}  e5 {[%clk 0:02:57]} 6. b4 {[%clk 0:03:01]}  Nge7 {[%clk 0:02:58]} 7. bxc5 {[%clk 0:03:00]}  O-O {[%clk 0:02:58]} 8. Rb1 {[%clk 0:02:59]}  f5 {[%clk 0:02:58]} 9. Nb5 {[%clk 0:02:50]}  e4 {[%clk 0:02:51]} 10. Bb2 {[%clk 0:02:46]}  Bxb2 {[%clk 0:02:44]} 11. Rxb2 {[%clk 0:02:47]}  Ne5 {[%clk 0:02:43]} 12. Qb3 {[%clk 0:02:40]}  N7c6 {[%clk 0:02:40]} 13. Nh3 {[%clk 0:02:33]}  Na5 {[%clk 0:02:36]} 14. Qc3 {[%clk 0:02:30]}  Naxc4 {[%clk 0:02:37]} 15. Rb4 {[%clk 0:02:29]}  a6 {[%clk 0:02:36]} 16. Nd6 {[%clk 0:02:20]}  Nxd6 {[%clk 0:02:35]} 17. Qxe5 {[%clk 0:02:09]}  Nf7 {[%clk 0:02:35]} 18. Qd5 {[%clk 0:02:09]}  d6 {[%clk 0:02:33]} 19. c6 {[%clk 0:02:00]}  bxc6 {[%clk 0:02:29]} 20. Qxc6 {[%clk 0:02:00]}  Be6 {[%clk 0:02:29]} 21. O-O {[%clk 0:01:56]}  Ne5 {[%clk 0:02:25]} 22. Qc2 {[%clk 0:01:43]}  a5 {[%clk 0:02:21]} 23. Nf4 {[%clk 0:01:27]}  axb4 {[%clk 0:02:01]} 24. Nxe6 {[%clk 0:01:27]}  Qe7 {[%clk 0:02:01]} 25. Nxf8 {[%clk 0:01:27]}  bxa3 {[%clk 0:02:00]} 26. Nxh7 {[%clk 0:01:24]}  Kxh7 {[%clk 0:02:00]} 27. d4 {[%clk 0:01:23]}  Ng4 {[%clk 0:01:55]} 28. Ra1 {[%clk 0:01:16]}  d5 {[%clk 0:01:50]} 29. e3 {[%clk 0:01:13]}  Ra7 {[%clk 0:01:45]} 30. Bf1 {[%clk 0:01:11]}  Qb4 {[%clk 0:01:39]} 31. Rb1 {[%clk 0:00:58]}  Qa4 {[%clk 0:01:19]} 32. Qa2 {[%clk 0:00:58]}  Qa5 {[%clk 0:01:06]} 33. h3 {[%clk 0:00:53]}  Nf6 {[%clk 0:01:05]} 34. Rb5 {[%clk 0:00:51]}  Qe1 {[%clk 0:01:05]} 35. Rb3 {[%clk 0:00:47]}  Rc7 {[%clk 0:01:01]} 36. Qxa3 {[%clk 0:00:38]}  Rc1 {[%clk 0:01:01]} 37. Qa6 {[%clk 0:00:36]}  Nh5 {[%clk 0:01:01]} 38. Rb7+ {[%clk 0:00:34]}  Kh6 {[%clk 0:01:01]} 39. Rb6 {[%clk 0:00:35]} 1-0


[Site "https://www.chess.com"]

[Event "Titled Tuesday Blitz December 20 Late 2022"]
[White "Skibbe, Willi"]
[Black "Goroshkov, Maksym"]
[WhiteFideId "4682190"]
[BlackFideId "14142716"]
[WhiteElo "2351"]
[BlackElo "2258"]
[Result "0-1"]
[Round "01"]
[TimeControl "180+1"]
[Date "2022.12.21"]
[WhiteClock "0:01:30"]
[BlackClock "0:01:52"]

1. d4 {[%clk 0:02:59]}  Nf6 {[%clk 0:02:58]} 2. c4 {[%clk 0:02:59]}  e5 {[%clk 0:02:57]} 3. dxe5 {[%clk 0:02:59]}  Ng4 {[%clk 0:02:58]} 4. Bf4 {[%clk 0:02:59]}  Nc6 {[%clk 0:02:58]} 5. Nf3 {[%clk 0:02:58]}  Bb4+ {[%clk 0:02:59]} 6. Nbd2 {[%clk 0:02:58]}  Qe7 {[%clk 0:03:00]} 7. a3 {[%clk 0:02:56]}  Ngxe5 {[%clk 0:03:00]} 8. Nxe5 {[%clk 0:02:57]}  Nxe5 {[%clk 0:03:01]} 9. e3 {[%clk 0:02:58]}  Bxd2+ {[%clk 0:03:01]} 10. Qxd2 {[%clk 0:02:58]}  d6 {[%clk 0:03:01]} 11. Be2 {[%clk 0:02:57]}  b6 {[%clk 0:03:02]} 12. O-O {[%clk 0:02:56]}  Bb7 {[%clk 0:03:02]} 13. Rac1 {[%clk 0:02:54]}  O-O {[%clk 0:03:02]} 14. b4 {[%clk 0:02:54]}  Rad8 {[%clk 0:02:55]} 15. Qc3 {[%clk 0:02:50]}  Qf6 {[%clk 0:02:54]} 16. Bg3 {[%clk 0:02:46]}  Qg6 {[%clk 0:02:47]} 17. c5 {[%clk 0:02:26]}  bxc5 {[%clk 0:02:39]} 18. bxc5 {[%clk 0:02:26]}  h5 {[%clk 0:02:39]} 19. Qc2 {[%clk 0:02:21]}  Be4 {[%clk 0:02:37]} 20. Qc3 {[%clk 0:02:14]}  h4 {[%clk 0:02:36]} 21. f3 {[%clk 0:02:07]}  hxg3 {[%clk 0:02:36]} 22. fxe4 {[%clk 0:02:07]}  gxh2+ {[%clk 0:02:35]} 23. Kxh2 {[%clk 0:02:06]}  Qxe4 {[%clk 0:02:35]} 24. cxd6 {[%clk 0:02:05]}  cxd6 {[%clk 0:02:33]} 25. Rf4 {[%clk 0:02:04]}  Qg6 {[%clk 0:02:27]} 26. Qd4 {[%clk 0:01:54]}  Rfe8 {[%clk 0:02:22]} 27. Bd1 {[%clk 0:01:38]}  Qh6+ {[%clk 0:02:13]} 28. Rh4 {[%clk 0:01:37]}  Qf6 {[%clk 0:02:13]} 29. Qxa7 {[%clk 0:01:30]}  Qxh4+ {[%clk 0:01:52]} 0-1


[Site "https://www.chess.com"]

[Event "Titled Tuesday Blitz December 20 Late 2022"]
[White "Smith, Garrett L"]
[Black "Saveliev, Alexei"]
[WhiteFideId "2024829"]
[BlackFideId "24128546"]
[WhiteElo "2219"]
[BlackElo "2290"]
[Result "0-1"]
[Round "01"]
[TimeControl "180+1"]
[Date "2022.12.21"]
[WhiteClock "0:02:21"]
[BlackClock "0:02:56"]

1. e4 {[%clk 0:03:00]}  g6 {[%clk 0:03:00]} 2. d4 {[%clk 0:02:59]}  Bg7 {[%clk 0:03:00]} 3. Nc3 {[%clk 0:02:59]}  d6 {[%clk 0:03:01]} 4. Be3 {[%clk 0:02:58]}  Nc6 {[%clk 0:03:01]} 5. d5 {[%clk 0:02:56]}  Ne5 {[%clk 0:03:00]} 6. f4 {[%clk 0:02:49]}  Nd7 {[%clk 0:03:00]} 7. Nf3 {[%clk 0:02:47]}  Ngf6 {[%clk 0:02:59]} 8. Qd2 {[%clk 0:02:44]}  O-O {[%clk 0:02:59]} 9. h3 {[%clk 0:02:40]}  c5 {[%clk 0:03:00]} 10. g4 {[%clk 0:02:36]}  a6 {[%clk 0:02:59]} 11. g5 {[%clk 0:02:30]}  Nh5 {[%clk 0:02:58]} 12. Rg1 {[%clk 0:02:24]}  b5 {[%clk 0:02:58]} 13. Be2 {[%clk 0:02:22]}  b4 {[%clk 0:02:57]} 14. Na4 {[%clk 0:02:21]}  Qa5 {[%clk 0:02:56]} 0-1


[Site "https://www.chess.com"]

[Event "Titled Tuesday Blitz December 20 Late 2022"]
[White "Sohal, Tanraj"]
[Black "Prithu Gupta"]
[WhiteFideId "2608499"]
[BlackFideId "46618546"]
[WhiteElo "2203"]
[BlackElo "2344"]
[Result "1-0"]
[Round "01"]
[TimeControl "180+1"]
[Date "2022.12.21"]
[WhiteClock "0:02:00"]
[BlackClock "0:01:23"]

1. e4 {[%clk 0:02:55]}  e5 {[%clk 0:02:58]} 2. Nf3 {[%clk 0:02:46]}  Nc6 {[%clk 0:02:41]} 3. Bc4 {[%clk 0:02:46]}  Nf6 {[%clk 0:02:36]} 4. d3 {[%clk 0:02:45]}  Bc5 {[%clk 0:02:13]} 5. Bg5 {[%clk 0:02:43]}  O-O {[%clk 0:02:12]} 6. Nc3 {[%clk 0:02:40]}  Be7 {[%clk 0:02:09]} 7. a3 {[%clk 0:02:33]}  d6 {[%clk 0:02:08]} 8. h3 {[%clk 0:02:33]}  Be6 {[%clk 0:02:07]} 9. Qe2 {[%clk 0:02:29]}  Bxc4 {[%clk 0:02:03]} 10. dxc4 {[%clk 0:02:30]}  Nd4 {[%clk 0:02:01]} 11. Qd3 {[%clk 0:02:22]}  Ne6 {[%clk 0:02:00]} 12. Bxf6 {[%clk 0:02:21]}  Bxf6 {[%clk 0:01:58]} 13. g3 {[%clk 0:02:21]}  c6 {[%clk 0:01:55]} 14. O-O-O {[%clk 0:02:19]}  Be7 {[%clk 0:01:53]} 15. Qe2 {[%clk 0:02:18]}  a5 {[%clk 0:01:42]} 16. Nxe5 {[%clk 0:02:16]}  dxe5 {[%clk 0:01:41]} 17. Rxd8 {[%clk 0:02:15]}  Rfxd8 {[%clk 0:01:39]} 18. Kb1 {[%clk 0:02:15]}  a4 {[%clk 0:01:28]} 19. h4 {[%clk 0:02:07]}  Bc5 {[%clk 0:01:23]} 20. Rd1 {[%clk 0:02:05]}  Bd4 {[%clk 0:01:23]} 21. Qe1 {[%clk 0:02:00]} 1-0


[Site "https://www.chess.com"]

[Event "Titled Tuesday Blitz December 20 Late 2022"]
[White "Sokolovsky, Yahli"]
[Black "Guzman Moneo, Alberto"]
[WhiteFideId "2820242"]
[BlackFideId "2209616"]
[WhiteElo "2316"]
[BlackElo "2157"]
[Result "1-0"]
[Round "01"]
[TimeControl "180+1"]
[Date "2022.12.21"]
[WhiteClock "0:00:56"]
[BlackClock "0:00:01"]

1. b3 {[%clk 0:02:57]}  d5 {[%clk 0:02:59]} 2. Bb2 {[%clk 0:02:57]}  Bg4 {[%clk 0:02:59]} 3. Nf3 {[%clk 0:02:52]}  Bxf3 {[%clk 0:02:59]} 4. exf3 {[%clk 0:02:53]}  c6 {[%clk 0:02:58]} 5. g3 {[%clk 0:02:53]}  Nd7 {[%clk 0:02:58]} 6. Bg2 {[%clk 0:02:54]}  e6 {[%clk 0:02:59]} 7. O-O {[%clk 0:02:53]}  Ngf6 {[%clk 0:02:59]} 8. f4 {[%clk 0:02:49]}  Bc5 {[%clk 0:02:58]} 9. c4 {[%clk 0:02:46]}  dxc4 {[%clk 0:02:54]} 10. bxc4 {[%clk 0:02:46]}  O-O {[%clk 0:02:53]} 11. d4 {[%clk 0:02:45]}  Bb6 {[%clk 0:02:52]} 12. Nc3 {[%clk 0:02:45]}  Re8 {[%clk 0:02:50]} 13. d5 {[%clk 0:02:43]}  cxd5 {[%clk 0:02:46]} 14. cxd5 {[%clk 0:02:44]}  exd5 {[%clk 0:02:41]} 15. Nxd5 {[%clk 0:02:44]}  Nxd5 {[%clk 0:02:41]} 16. Qxd5 {[%clk 0:02:43]}  Nc5 {[%clk 0:02:35]} 17. Rad1 {[%clk 0:02:28]}  Qxd5 {[%clk 0:02:33]} 18. Bxd5 {[%clk 0:02:29]}  Re2 {[%clk 0:02:25]} 19. Bd4 {[%clk 0:02:24]}  Rae8 {[%clk 0:02:11]} 20. Bc4 {[%clk 0:02:18]}  Rc2 {[%clk 0:01:44]} 21. Rc1 {[%clk 0:02:18]}  Rxc1 {[%clk 0:01:42]} 22. Rxc1 {[%clk 0:02:17]}  Nd3 {[%clk 0:01:35]} 23. Rd1 {[%clk 0:02:08]}  Bxd4 {[%clk 0:01:25]} 24. Rxd3 {[%clk 0:02:09]}  Bb6 {[%clk 0:01:17]} 25. Rd7 {[%clk 0:02:09]}  Rf8 {[%clk 0:01:16]} 26. f5 {[%clk 0:02:04]}  g6 {[%clk 0:01:09]} 27. fxg6 {[%clk 0:02:00]}  hxg6 {[%clk 0:01:09]} 28. Rxb7 {[%clk 0:01:59]}  Kg7 {[%clk 0:01:08]} 29. Rd7 {[%clk 0:01:59]}  Kf6 {[%clk 0:01:07]} 30. Kg2 {[%clk 0:01:59]}  g5 {[%clk 0:01:06]} 31. f3 {[%clk 0:01:58]}  Kg6 {[%clk 0:01:05]} 32. g4 {[%clk 0:01:58]}  Be3 {[%clk 0:01:00]} 33. a4 {[%clk 0:01:56]}  a5 {[%clk 0:00:55]} 34. h3 {[%clk 0:01:52]}  Bc5 {[%clk 0:00:52]} 35. Kf1 {[%clk 0:01:52]}  Bb4 {[%clk 0:00:52]} 36. Bd5 {[%clk 0:01:47]}  Bc5 {[%clk 0:00:46]} 37. Ke2 {[%clk 0:01:48]}  Bb4 {[%clk 0:00:46]} 38. Kd3 {[%clk 0:01:47]}  Bc5 {[%clk 0:00:46]} 39. Kc4 {[%clk 0:01:46]}  Bb4 {[%clk 0:00:46]} 40. Kb3 {[%clk 0:01:44]}  Bc5 {[%clk 0:00:43]} 41. Rb7 {[%clk 0:01:45]}  Bb4 {[%clk 0:00:43]} 42. Kb2 {[%clk 0:01:44]}  Bc5 {[%clk 0:00:42]} 43. Ka2 {[%clk 0:01:44]}  Bb4 {[%clk 0:00:42]} 44. Kb3 {[%clk 0:01:44]}  Bc5 {[%clk 0:00:42]} 45. Kc4 {[%clk 0:01:45]}  Bb4 {[%clk 0:00:42]} 46. Kb5 {[%clk 0:01:46]}  Kf6 {[%clk 0:00:40]} 47. Rc7 {[%clk 0:01:43]}  Bd2 {[%clk 0:00:35]} 48. Kc6 {[%clk 0:01:41]}  Bb4 {[%clk 0:00:34]} 49. Kd7 {[%clk 0:01:39]}  Ke5 {[%clk 0:00:31]} 50. Be4 {[%clk 0:01:38]}  f6 {[%clk 0:00:31]} 51. Rc6 {[%clk 0:01:23]}  Rf7+ {[%clk 0:00:28]} 52. Ke8 {[%clk 0:01:24]}  Re7+ {[%clk 0:00:27]} 53. Kd8 {[%clk 0:01:24]}  Rf7 {[%clk 0:00:23]} 54. Bg6 {[%clk 0:01:14]}  Rf8+ {[%clk 0:00:23]} 55. Kd7 {[%clk 0:01:14]}  Rg8 {[%clk 0:00:21]} 56. Re6+ {[%clk 0:01:12]}  Kf4 {[%clk 0:00:15]} 57. Rxf6+ {[%clk 0:01:12]}  Kg3 {[%clk 0:00:16]} 58. Bf7 {[%clk 0:01:13]}  Rg7 {[%clk 0:00:16]} 59. Ke6 {[%clk 0:01:12]}  Bc3 {[%clk 0:00:15]} 60. Rh6 {[%clk 0:01:00]}  Kxf3 {[%clk 0:00:14]} 61. Ke7 {[%clk 0:01:00]}  Kg3 {[%clk 0:00:12]} 62. Kf8 {[%clk 0:01:01]}  Bb2 {[%clk 0:00:11]} 63. Rb6 {[%clk 0:01:01]}  Bd4 {[%clk 0:00:09]} 64. Rd6 {[%clk 0:01:00]}  Be5 {[%clk 0:00:09]} 65. Rd5 {[%clk 0:01:00]}  Bb2 {[%clk 0:00:08]} 66. Rb5 {[%clk 0:00:59]}  Bd4 {[%clk 0:00:07]} 67. Rxa5 {[%clk 0:00:58]}  Kxh3 {[%clk 0:00:07]} 68. Rd5 {[%clk 0:00:56]}  Bb2 {[%clk 0:00:06]} 69. Rd2 {[%clk 0:00:56]}  Be5 {[%clk 0:00:04]} 70. Re2 {[%clk 0:00:57]}  Bd4 {[%clk 0:00:03]} 71. Re4 {[%clk 0:00:57]}  Bf6 {[%clk 0:00:03]} 72. a5 {[%clk 0:00:56]}  Rh7 {[%clk 0:00:01]} 73. a6 {[%clk 0:00:56]} 1-0


[Site "https://www.chess.com"]